bitfinex/quotes_SOLUSD_20260108
["timestamp","ask_amount","ask_price","bid_price","bid_amount"]
[1767871026319,3.54188229,134.79,134.76,0.68555706]
[1767871027290,0.72254983,134.79,134.76,0.68555706]
[1767871035408,8.14185584,134.79,134.76,0.68555706]
[1767871035918,10.9611883,134.79,134.76,0.68555706]
[1767871037125,3.54188229,134.79,134.76,0.68555706]
[1767871038501,0.72254983,134.79,134.76,0.68555706]
[1767871039523,10.96086526,134.79,134.76,0.68555706]
[1767871039906,8.1415328,134.79,134.76,0.68555706]
[1767871040699,0.71337566,134.78,134.75,14.22334455]
[1767871043098,0.71337566,134.77,134.75,13.54]
[1767871044132,0.71337566,134.77,134.74,10.92437007]
[1767871044625,10.95189013,134.79,134.75,0.68334455]
[1767871044830,8.13255767,134.79,134.75,0.68334455]
[1767871046229,0.71337566,134.78,134.75,0.68334455]
[1767871048138,0.71337566,134.77,134.72,8.30599471]
[1767871048312,0.71337566,134.76,134.72,8.30608751]
[1767871048516,0.71337566,134.76,134.72,12.7164725]
[1767871048836,0.71337566,134.76,134.72,8.30608751]
[1767871049035,0.71337566,134.76,134.72,12.7164725]
[1767871049239,0.71337566,134.76,134.73,0.68334455]
[1767871050138,8.13408414,134.76,134.73,0.68334455]
[1767871050735,0.71337566,134.74,134.72,0.2]
[1767871055536,0.68135414,134.73,134.72,0.2]
[1767871055735,0.65135415,134.73,134.72,0.2]
[1767871056242,0.65135415,134.73,134.7,0.2]
[1767871056444,0.65135415,134.73,134.7,0.87570905]
[1767871057238,11.8028545,134.73,134.7,0.2]
[1767871057640,0.68135414,134.72,134.7,0.2]
[1767871057846,0.65135415,134.72,134.7,0.2]
[1767871058042,11.8028545,134.73,134.7,0.87570905]
[1767871058345,0.28432314,134.77,134.7,0.87570905]
[1767871058346,25.97209854,134.76,134.7,0.87570905]
[1767871058544,25.97209854,134.76,134.71,0.67570905]
[1767871058753,7.42059958,134.76,134.72,5.08609404]
[1767871058931,7.42059958,134.76,134.7,0.87570905]
[1767871059134,7.42059958,134.76,134.71,4.41038499]
[1767871059327,11.83098457,134.76,134.71,5.08609404]
[1767871059850,0.68135414,134.75,134.71,5.08609404]
[1767871060037,0.68135414,134.75,134.7,12.70987965]
[1767871060551,0.68135414,134.75,134.7,8.29949466]
[1767871060728,0.68135414,134.74,134.7,12.70987965]
[1767871060922,0.68135414,134.74,134.71,4.41038499]
[1767871061120,0.68135414,134.74,134.7,8.29949466]
[1767871061339,0.68135414,134.74,134.71,4.41038499]
[1767871062825,0.68135414,134.74,134.7,12.70987965]
[1767871063251,0.68135414,134.73,134.7,0.87570905]
[1767871063946,0.68135414,134.73,134.7,5.28609404]
[1767871065251,0.68135414,134.73,134.7,12.70998776]
[1767871066658,0.68135414,134.73,134.7,5.28609404]
[1767871066957,0.68135414,134.73,134.7,12.7099258]
[1767871067659,0.68135414,134.74,134.71,5.08609404]
[1767871070952,0.68135414,134.74,134.71,0.67570905]
[1767871074557,0.68135414,134.73,134.7,0.2]
[1767871076572,0.68135414,134.73,134.7,0.87570905]
[1767871077943,8.10317564,134.74,134.71,5.08609404]
[1767871078144,0.68135414,134.73,134.71,5.08609404]
[1767871078352,0.68135414,134.75,134.72,5.08609404]
[1767871078563,0.68135414,134.75,134.73,4.41038499]
[1767871078745,0.68135414,134.75,134.72,5.08609404]
[1767871079968,0.68135414,134.74,134.71,0.67570905]
[1767871080165,0.68135414,134.74,134.71,5.08609404]
[1767871080769,0.68135414,134.74,134.71,12.50942364]
[1767871081364,0.68135414,134.75,134.72,5.08609404]
[1767871082969,8.10253054,134.75,134.72,0.67570905]
[1767871083172,0.71457812,134.74,134.72,0.67570905]
[1767871083374,0.71457812,134.74,134.71,4.41038499]
[1767871083671,0.71457812,134.74,134.71,5.08610419]
[1767871084380,0.71457812,134.74,134.71,8.09902298]
[1767871084559,0.71457812,134.74,134.71,5.08610419]
[1767871084752,0.71457812,134.74,134.71,0.6757192]
[1767871084973,0.71457812,134.74,134.71,5.08610419]
[1767871085382,0.71457812,134.74,134.71,0.6757192]
[1767871085674,8.13628621,134.74,134.71,0.6757192]
[1767871086259,0.71457812,134.74,134.71,0.6757192]
[1767871086449,0.71457812,134.74,134.71,5.08610419]
[1767871088676,0.71457812,134.74,134.71,4.41038499]
[1767871088981,0.71457812,134.74,134.71,5.07425022]
[1767871090385,8.13650513,134.74,134.7,0.2]
[1767871090574,0.66867795,134.71,134.7,0.2]
[1767871091089,0.66867795,134.71,134.69,0.2]
[1767871091585,5.07906294,134.71,134.69,0.2]
[1767871091785,0.66867795,134.72,134.69,0.86386523]
[1767871092576,8.09150075,134.72,134.69,0.86386523]
[1767871094690,8.09111383,134.73,134.7,0.66386523]
[1767871095079,12.50081722,134.74,134.7,0.66386523]
[1767871095393,0.66867795,134.76,134.73,0.66386523]
[1767871096178,8.08938778,134.76,134.73,0.66386523]
[1767871096386,12.49977277,134.76,134.73,0.66386523]
[1767871099992,8.08938778,134.76,134.73,0.66386523]
[1767871100581,12.49977277,134.76,134.73,0.66386523]
[1767871100884,12.49977277,134.76,134.71,0.66386523]
[1767871100885,5.07906294,134.74,134.71,0.66386523]
[1767871102370,0.66867795,134.74,134.71,0.66386523]
[1767871103089,7.42168447,134.75,134.71,0.66386523]
[1767871103296,5.07906294,134.76,134.71,0.66386523]
[1767871104080,0.66867795,134.75,134.71,0.66386523]
[1767871104823,0.66867795,134.75,134.72,0.66386523]
[1767871106295,0.66867795,134.74,134.71,0.66386523]
[1767871107680,0.66867795,134.73,134.7,0.66386523]
[1767871110479,10.9156044,134.73,134.7,0.66386523]
[1767871111198,0.66867795,134.72,134.69,0.86386523]
[1767871111877,10.9156044,134.73,134.7,0.66386523]
[1767871113605,0.71205313,134.72,134.69,0.8970178]
[1767871113907,3.53668181,134.71,134.69,0.2]
[1767871114774,2.82462868,134.71,134.69,0.8970178]
[1767871114974,0.71205313,134.72,134.69,0.8970178]
[1767871114975,3.53668181,134.72,134.69,0.8970178]
[1767871116294,7.42335387,134.71,134.69,0.8970178]
[1767871118105,8.135407,134.71,134.69,0.2]
[1767871119405,8.13510173,134.72,134.69,0.8970178]
[1767871119702,10.95973041,134.72,134.69,0.8970178]
[1767871120408,0.71205313,134.71,134.69,0.2]
[1767871121098,3.53668181,134.71,134.69,0.2]
[1767871121406,7.42390497,134.7,134.69,1e-08]
[1767871125702,8.1359581,134.7,134.69,1e-08]
[1767871129810,0.71205313,134.73,134.69,0.69701781]
[1767871130006,0.71205313,134.72,134.69,0.69701781]
[1767871131121,8.13534705,134.72,134.69,0.69701781]
[1767871133514,26.68993481,134.73,134.69,0.69701781]
[1767871133700,29.51456349,134.73,134.69,0.69701781]
[1767871133904,7.42196832,134.74,134.7,0.6970178]
[1767871134108,8.13402145,134.74,134.7,0.6970178]
[1767871134412,10.95865013,134.74,134.7,0.6970178]
[1767871134918,0.71205313,134.73,134.68,1e-08]
[1767871135098,0.71205313,134.68,134.66,1e-08]
[1767871135295,2.82462868,134.68,134.66,1e-08]
[1767871135605,2.82462868,134.67,134.66,1e-08]
[1767871136027,10.25015532,134.68,134.66,1e-08]
[1767871136403,7.42552664,134.68,134.66,1e-08]
[1767871136803,2.82462868,134.67,134.64,1e-08]
[1767871137010,2.82462868,134.66,134.64,1e-08]
[1767871137322,0.71205313,134.65,134.64,1e-08]
[1767871137520,2.82462868,134.66,134.61,0.2]
[1767871137521,0.71205313,134.63,134.61,0.2]
[1767871137814,10.96406951,134.64,134.61,0.2]
[1767871138011,2.82462868,134.63,134.61,0.2]
[1767871138218,3.53668181,134.63,134.61,0.2]
[1767871138594,8.13944083,134.64,134.61,0.8970178]
[1767871138818,10.96406951,134.64,134.61,0.8970178]
[1767871140221,7.42667999,134.65,134.62,0.6970178]
[1767871140821,8.13821587,134.66,134.63,0.6970178]
[1767871141606,0.71205313,134.65,134.62,2.82462868]
[1767871141816,0.71205313,134.67,134.63,2.82462868]
[1767871142104,0.68725497,134.67,134.64,0.6970178]
[1767871143230,10.93759256,134.67,134.64,0.6970178]
[1767871143407,10.93759256,134.67,134.63,0.65601116]
[1767871145111,0.70055574,134.66,134.62,2.82462868]
[1767871145427,0.70055574,134.66,134.62,0.71598376]
[1767871147536,0.70055574,134.66,134.61,11.1692624]
[1767871148340,0.70055574,134.66,134.62,0.71598376]
[1767871149138,0.70055574,134.66,134.62,3.54061244]
[1767871150151,0.70055574,134.66,134.63,0.71598376]
[1767871152032,0.70055574,134.7,134.66,0.71598376]
[1767871152733,3.52518442,134.69,134.65,0.71598376]
[1767871153134,25.9841089,134.7,134.62,0.71598376]
[1767871153135,0.70055574,134.68,134.62,0.71598376]
[1767871153316,0.70055574,134.66,134.63,0.71598376]
[1767871155343,8.12674076,134.66,134.63,0.71598376]
[1767871155543,0.70055574,134.66,134.63,0.71598376]
[1767871155842,8.12670066,134.66,134.63,0.71598376]
[1767871157042,0.70055574,134.66,134.63,0.71598376]
[1767871158038,8.12671506,134.66,134.63,0.71598376]
[1767871158829,0.70055574,134.66,134.63,0.71598376]
[1767871160243,8.12668028,134.66,134.63,0.71598376]
[1767871160419,8.12668028,134.66,134.62,10.96892497]
[1767871161347,8.12668028,134.66,134.62,8.14429629]
[1767871162246,8.12668028,134.66,134.63,0.71598376]
[1767871162733,0.70055574,134.65,134.62,8.14429629]
[1767871163348,0.70055574,134.65,134.63,2.82462868]
[1767871163533,0.70055574,134.65,134.62,10.96892497]
[1767871164829,0.70055574,134.66,134.63,0.71598376]
[1767871167426,4.41832638,134.69,134.64,4.41832638]
[1767871167728,0.70055574,134.68,134.65,0.71598376]
[1767871168640,0.70055574,134.67,134.63,0.71598376]
[1767871168849,0.70055574,134.66,134.62,13.56]
[1767871169149,0.70055574,134.66,134.62,14.27598376]
[1767871169348,0.70055574,134.66,134.63,0.71598376]
[1767871171428,8.12680941,134.66,134.63,0.71598376]
[1767871172374,0.70055574,134.66,134.63,0.71598376]
[1767871172649,8.12274271,134.67,134.63,0.71598376]
[1767871173154,2.74975592,134.68,134.63,0.71598376]
[1767871173347,2.74975592,134.68,134.64,0.71681491]
[1767871173651,0.28432314,134.7,134.64,0.71681491]
[1767871173951,4.41832638,134.68,134.64,0.71681491]
[1767871175152,5.11527402,134.68,134.64,0.71681491]
[1767871176352,12.07212735,134.67,134.64,0.71681491]
[1767871176553,5.11058696,134.66,134.62,14.27681491]
[1767871177251,5.11058696,134.66,134.62,0.71681491]
[1767871178355,12.53702444,134.66,134.62,0.71681491]
[1767871182259,0.23288239,134.65,134.62,0.71681491]
[1767871182463,12.5417115,134.66,134.62,0.71681491]
[1767871184464,8.12338512,134.66,134.62,0.71681491]
[1767871184666,12.5417115,134.66,134.62,0.71681491]
[1767871185972,8.12338512,134.66,134.62,0.71681491]
[1767871187084,22.98222331,134.67,134.63,0.71681491]
[1767871187085,7.42574351,134.67,134.63,0.71681491]
[1767871187876,14.35067818,134.68,134.63,0.71681491]
[1767871188044,14.35067818,134.68,134.62,11.84651846]
[1767871188045,8.12215553,134.68,134.64,0.71681491]
[1767871188250,0.2282422,134.67,134.64,0.71681491]
[1767871188945,7.42520789,134.68,134.64,0.71681491]
[1767871189147,11.34379667,134.7,134.65,0.71681491]
[1767871189370,4.41832638,134.7,134.66,0.71681491]
[1767871190072,11.84229752,134.7,134.66,0.71681491]
[1767871190464,7.42397114,134.7,134.66,0.71681491]
[1767871191258,12.07053972,134.7,134.66,0.71681491]
[1767871192183,7.65221334,134.7,134.66,0.71681491]
[1767871192484,12.07053972,134.7,134.66,0.71681491]
[1767871196285,4.77852265,134.72,134.65,0.28432314]
[1767871196483,0.69694764,134.77,134.71,4.41832638]
[1767871196673,12.53532615,134.77,134.71,4.41832638]
[1767871197280,4.41832638,134.76,134.7,4.41832638]
[1767871198177,11.83942671,134.76,134.7,11.84205812]
[1767871198370,11.83942671,134.76,134.71,4.41832638]
[1767871199467,4.41832638,134.74,134.69,25.4025435]
[1767871200286,11.84033366,134.74,134.69,25.4025435]
[1767871200589,11.84033366,134.74,134.69,17.97832638]
[1767871200769,11.84033366,134.74,134.66,18.84874135]
[1767871200976,4.41832638,134.71,134.66,4.41832638]
[1767871201173,4.41832638,134.7,134.65,25.40482232]
[1767871201378,0.69694764,134.69,134.65,25.40482232]
[1767871201693,0.69694764,134.72,134.68,4.41832638]
[1767871202066,0.69694764,134.72,134.66,7.42593256]
[1767871202262,0.69694764,134.72,134.67,11.84376936]
[1767871202263,0.70733118,134.71,134.67,11.84376936]
[1767871202487,0.70733118,134.71,134.67,4.41832638]
[1767871202890,0.70733118,134.71,134.66,13.56]
[1767871203091,0.70733118,134.71,134.61,0.2]
[1767871203092,5.12565756,134.67,134.61,0.2]
[1767871203389,0.28432314,134.71,134.61,4.61832638]
[1767871203390,5.12565756,134.66,134.61,4.61832638]
[1767871203770,0.70733118,134.66,134.62,4.41832638]
[1767871204572,5.12565756,134.66,134.61,7.62868964]
[1767871205787,12.55200607,134.66,134.61,7.62868964]
[1767871206181,12.55200607,134.66,134.61,0.2]
[1767871206182,0.71492312,134.64,134.61,0.2]
[1767871206372,7.42634851,134.66,134.61,0.2]
[1767871206373,5.1332495,134.63,134.61,0.2]
[1767871206581,4.92843231,134.63,134.61,0.2]
[1767871206992,4.41832638,134.63,134.61,0.2]
[1767871207178,25.99162401,134.66,134.57,0.2]
[1767871207179,4.41832638,134.62,134.57,0.2]
[1767871207383,4.41832638,134.58,134.52,0.2]
[1767871207685,4.41832638,134.54,134.5,28.4]
[1767871207881,4.41832638,134.53,134.5,28.4]
[1767871208283,4.41832638,134.55,134.51,0.66524195]
[1767871208483,0.71492312,134.54,134.5,35.83490627]
[1767871208683,0.71492312,134.54,134.5,35.83469299]
[1767871208883,26.00683607,134.58,134.5,35.83469299]
[1767871208884,0.71492312,134.56,134.52,0.66524195]
[1767871209596,5.1332495,134.56,134.52,0.66524195]
[1767871209803,7.43052459,134.58,134.53,5.08356833]
[1767871209804,0.71492312,134.58,134.53,5.08356833]
[1767871209984,5.1332495,134.58,134.53,0.66524195]
[1767871210298,5.1332495,134.54,134.49,0.66524195]
[1767871210501,5.1332495,134.54,134.48,0.2]
[1767871210502,0.71492312,134.51,134.48,0.2]
[1767871210801,0.71492312,134.52,134.48,0.86524195]
[1767871210979,0.71492312,134.5,134.48,0.2]
[1767871211808,4.41832638,134.51,134.48,0.2]
[1767871211809,5.1332495,134.51,134.48,0.2]
[1767871211974,5.1332495,134.5,134.48,0.2]
[1767871212292,13.56,134.54,134.48,12.71958801]
[1767871212293,0.71492312,134.52,134.48,12.71958801]
[1767871212472,8.14881617,134.52,134.48,0.2]
[1767871212676,4.41832638,134.51,134.48,0.2]
[1767871212878,4.41832638,134.49,134.48,0.2]
[1767871213077,0.71492312,134.5,134.48,0.2]
[1767871213296,0.71492312,134.5,134.47,7.63652082]
[1767871213297,0.71492312,134.48,134.42,14.22524195]
[1767871213473,0.71492312,134.48,134.45,7.43770812]
[1767871213674,5.1332495,134.5,134.45,0.66524195]
[1767871213879,0.71492312,134.48,134.43,4.41832638]
[1767871214075,0.71492312,134.45,134.39,4.53803954]
[1767871214295,0.71492312,134.44,134.4,11.85842909]
[1767871214479,0.71492312,134.49,134.43,4.41832638]
[1767871214678,20.99494423,134.5,134.41,0.14216157]
[1767871214679,0.71492312,134.47,134.41,0.14216157]
[1767871214876,0.71492312,134.42,134.36,21.6678128]
[1767871215087,4.41832638,134.41,134.36,12.52587658]
[1767871215303,14.55924626,134.46,134.4,0.66524195]
[1767871215599,0.71492312,134.48,134.43,4.41832638]
[1767871215802,0.71492312,134.49,134.44,0.66524195]
[1767871215992,0.71492312,134.49,134.45,4.41832638]
[1767871216178,7.43494423,134.5,134.45,8.10295113]
[1767871216179,0.71492312,134.5,134.45,8.10295113]
[1767871216600,0.71492312,134.49,134.43,0.66524195]
[1767871216801,11.30785042,134.5,134.41,32.15933454]
[1767871216802,0.71492312,134.5,134.44,8.10340032]
[1767871216994,0.71492312,134.51,134.48,11.30785042]
[1767871217181,0.71492312,134.51,134.47,11.30785042]
[1767871217381,0.71492312,134.51,134.46,0.66524195]
[1767871217598,0.71492312,134.5,134.46,11.30785042]
[1767871217783,0.71492312,134.5,134.42,0.66524195]
[1767871218106,11.30785042,134.51,134.39,11.30785042]
[1767871218107,0.71492312,134.43,134.39,11.30785042]
[1767871218278,0.71492312,134.47,134.42,11.97309237]
[1767871218479,6.6801107,134.51,134.37,13.58]
[1767871218480,0.71492312,134.49,134.45,11.30785042]
[1767871218783,0.71492312,134.49,134.46,11.30785042]
[1767871218982,11.30785042,134.52,134.47,11.30785042]
[1767871218983,0.71492312,134.51,134.47,11.30785042]
[1767871219305,0.71492312,134.51,134.45,0.66524195]
[1767871219306,0.71492312,134.5,134.46,11.30785042]
[1767871219606,0.71492312,134.5,134.46,11.97309237]
[1767871219996,0.71492312,134.5,134.42,0.14216157]
[1767871219997,7.43328625,134.53,134.48,11.97309237]
[1767871220188,19.45605979,134.53,134.48,11.97309237]
[1767871220389,0.71492312,134.52,134.48,0.66524195]
[1767871221007,11.30785042,134.5,134.44,0.66524195]
[1767871221194,7.43328625,134.53,134.42,0.14216157]
[1767871221195,11.30785042,134.47,134.43,0.66524195]
[1767871221504,0.71492312,134.48,134.43,0.66524195]
[1767871221696,0.71492312,134.48,134.43,11.97309237]
[1767871221902,0.71492312,134.48,134.44,0.66524195]
[1767871222096,12.02277354,134.48,134.44,0.66524195]
[1767871222607,11.30785042,134.47,134.44,0.66524195]
[1767871223011,19.45912604,134.48,134.44,0.66524195]
[1767871223411,0.71492312,134.44,134.35,0.66524195]
[1767871223707,26.02647742,134.48,134.38,0.66524195]
[1767871223708,12.02277354,134.43,134.38,0.66524195]
[1767871224209,0.71492312,134.42,134.36,0.66524195]
[1767871224406,11.30785042,134.4,134.36,0.66524195]
[1767871224594,12.02277354,134.39,134.34,17.57561105]
[1767871224794,26.03809426,134.42,134.34,16.9103691]
[1767871224795,11.30785042,134.36,134.34,16.9103691]
[1767871225202,55.88970568,134.42,134.34,16.9103691]
[1767871225203,12.02277354,134.38,134.34,16.9103691]
[1767871225409,44.58185526,134.42,134.34,16.9103691]
[1767871225410,11.30785042,134.35,134.34,16.9103691]
[1767871225715,11.30785042,134.39,134.34,17.57561105]
[1767871225927,0.99924626,134.4,134.35,11.97309237]
[1767871225928,0.71492312,134.4,134.35,11.97309237]
[1767871226100,39.61809426,134.42,134.34,28.21821952]
[1767871226101,0.71492312,134.38,134.34,28.21821952]
[1767871226302,39.61809426,134.42,134.35,0.66524195]
[1767871226303,8.15568362,134.4,134.35,0.66524195]
[1767871226496,12.02277354,134.39,134.35,11.97309237]
[1767871226811,12.02277354,134.39,134.35,11.30785042]
[1767871227010,0.71492312,134.36,134.34,16.9103691]
[1767871227206,0.61492312,134.38,134.34,15.83010941]
[1767871227413,11.30785042,134.37,134.34,15.83010941]
[1767871227597,11.40685042,134.37,134.34,15.83010941]
[1767871227908,0.099,134.37,134.34,15.21518629]
[1767871228415,11.30785042,134.35,134.3,0.66524195]
[1767871228614,18.60527319,134.38,134.32,0.66524195]
[1767871228914,6.97626382,134.37,134.32,7.64150577]
[1767871229209,7.44102983,134.39,134.32,7.64150577]
[1767871229210,7.44102983,134.39,134.33,0.66524195]
[1767871229419,7.44102983,134.39,134.32,7.44487835]
[1767871229420,14.4169437,134.4,134.36,0.66524195]
[1767871230212,0.10460579,134.36,134.28,9.31881276]
[1767871230512,6.97626382,134.37,134.28,1.87183307]
[1767871230513,0.66524195,134.34,134.28,1.87183307]
[1767871230894,6.97626382,134.32,134.28,1.87183307]
[1767871231413,6.97626382,134.29,134.28,1e-08]
[1767871231602,0.66524195,134.33,134.28,1e-08]
[1767871231912,6.97626382,134.32,134.28,6.97626383]
[1767871232103,26.33568152,134.35,134.28,7.44708742]
[1767871232104,8.1084872,134.35,134.28,7.44708742]
[1767871232307,14.42034756,134.34,134.3,0.6706331]
[1767871232610,14.42034756,134.34,134.29,6.97626382]
[1767871232812,14.51934756,134.34,134.29,6.97626382]
[1767871233011,0.28432314,134.37,134.32,0.6706331]
[1767871233012,7.44263107,134.37,134.32,0.6706331]
[1767871233193,0.66524195,134.39,134.32,0.6706331]
[1767871233392,7.64150577,134.39,134.35,6.97626382]
[1767871233612,33.01405581,134.42,134.37,6.97626382]
[1767871233908,33.01405581,134.42,134.36,0.6706331]
[1767871233909,7.43936914,134.42,134.38,5.03e-06]
[1767871234300,6.97626382,134.41,134.36,7.64689692]
[1767871234497,6.97626382,134.4,134.36,7.64689692]
[1767871234697,6.97626382,134.4,134.31,0.28432314]
[1767871234698,6.97626382,134.37,134.34,0.6706331]
[1767871234899,6.97626382,134.37,134.31,0.6706331]
[1767871234900,0.6485905,134.37,134.31,0.6706331]
[1767871235204,6.97626382,134.36,134.32,0.6706331]
[1767871235591,0.94956509,134.39,134.33,7.64689692]
[1767871235990,6.97626382,134.38,134.33,7.64689692]
[1767871236186,7.92582891,134.39,134.33,7.64689692]
[1767871236414,7.54058356,134.38,134.33,7.64689692]
[1767871236619,7.44158356,134.38,134.33,7.64689692]
[1767871237012,0.94390267,134.38,134.32,0.6706331]
[1767871237216,0.94390267,134.38,134.28,0.14216158]
[1767871237217,6.97626382,134.35,134.3,15.09255778]
[1767871237394,0.10460579,134.37,134.31,7.64689692]
[1767871237715,6.97626382,134.36,134.31,0.6706331]
[1767871237899,6.97626382,134.34,134.29,7.64689692]
[1767871238097,0.11010003,134.35,134.29,0.6706331]
[1767871238301,6.97626382,134.33,134.29,0.6706331]
[1767871238613,6.97626382,134.33,134.28,15.09394304]
[1767871238792,0.6485905,134.34,134.28,15.09394304]
[1767871238793,8.092596,134.34,134.28,15.09394304]
[1767871238991,0.65402979,134.32,134.28,1e-08]
[1767871239203,0.28432314,134.33,134.28,1e-08]
[1767871239204,6.97626382,134.29,134.28,1e-08]
[1767871239416,0.11010003,134.31,134.28,1e-08]
[1767871239607,6.97626382,134.3,134.28,1e-08]
[1767871239808,6.97626382,134.3,134.25,0.6706331]
[1767871240011,0.39442317,134.31,134.25,0.6706331]
[1767871240213,0.39442317,134.31,134.23,8.12048223]
[1767871240214,0.64325944,134.28,134.23,8.12048223]
[1767871240402,15.08786162,134.3,134.25,0.6706331]
[1767871240720,0.66524195,134.32,134.26,0.6706331]
[1767871240901,0.66524195,134.32,134.27,6.97626382]
[1767871241096,0.099,134.3,134.24,8.11978872]
[1767871241314,0.14216157,134.32,134.28,0.6706331]
[1767871241315,6.97626382,134.32,134.28,0.6706331]
[1767871241498,110.44456469,134.33,134.28,7.64689692]
[1767871241698,0.66524195,134.34,134.29,6.97626382]
[1767871241908,7.44292126,134.36,134.32,0.6706331]
[1767871242106,7.44292126,134.36,134.32,7.31321771]
[1767871242304,7.44292126,134.36,134.32,0.33695389]
[1767871242512,14.41918508,134.36,134.32,0.33695389]
[1767871242708,14.41918508,134.36,134.31,6.97626382]
[1767871242913,14.41918508,134.36,134.28,18.61714163]
[1767871242914,7.87226367,134.36,134.28,7.44711566]
[1767871243107,6.97626382,134.35,134.3,6.97626382]
[1767871243314,26.47899186,134.36,134.31,6.97626382]
[1767871243315,33.45525568,134.36,134.31,6.97626382]
[1767871243825,26.47899186,134.36,134.31,6.97626382]
[1767871243999,33.45525568,134.36,134.31,6.97626382]
[1767871244405,26.47899186,134.36,134.32,6.97626382]
[1767871244612,7.44235414,134.37,134.32,7.64689692]
[1767871244923,7.83170361,134.37,134.32,7.64689692]
[1767871245109,26.43704706,134.37,134.32,7.64689692]
[1767871245309,7.83170361,134.37,134.33,6.97626382]
[1767871245505,7.83170361,134.37,134.32,0.6706331]
[1767871245705,7.83170361,134.37,134.33,6.97626382]
[1767871245905,13.6,134.39,134.35,6.97626382]
[1767871246223,13.6,134.39,134.36,6.97626382]
[1767871246421,21.04121878,134.39,134.36,6.97626382]
[1767871246624,0.70563886,134.41,134.36,7.64689692]
[1767871246816,8.14571056,134.41,134.37,6.97626382]
[1767871247007,7.4400717,134.41,134.37,6.97626382]
[1767871247209,7.4400717,134.41,134.36,7.64689692]
[1767871247411,7.4400717,134.41,134.37,6.97626382]
[1767871248111,7.3718135,134.38,134.31,0.6706331]
[1767871248312,7.3718135,134.38,134.33,7.64689692]
[1767871248527,19.298245,134.4,134.34,7.64689692]
[1767871248826,7.37482138,134.39,134.33,7.64689692]
[1767871249132,6.97626382,134.37,134.31,0.6706331]
[1767871249317,6.97626382,134.37,134.32,6.97626382]
[1767871249513,6.97626382,134.36,134.31,7.64689692]
[1767871250018,7.3777694,134.37,134.31,8.11596284]
[1767871250213,0.40150558,134.37,134.31,7.64689692]
[1767871250415,7.3777694,134.37,134.32,6.97626382]
[1767871250619,7.44269127,134.36,134.32,6.97626382]
[1767871250930,7.84385285,134.37,134.33,6.97626382]
[1767871251102,33.42546012,134.37,134.31,0.6706331]
[1767871251308,6.97626382,134.36,134.31,7.64689692]
[1767871251720,7.66670524,134.36,134.31,7.64689692]
[1767871252026,7.44234727,134.37,134.32,7.64689692]
[1767871252226,7.44234727,134.37,134.33,6.97626382]
[1767871253027,7.44234727,134.37,134.33,7.64689692]
[1767871253627,7.83169674,134.37,134.32,7.64689692]
[1767871253829,7.44234727,134.37,134.33,7.64689692]
[1767871254228,7.44234727,134.37,134.33,0.6706331]
[1767871254406,7.44234727,134.37,134.33,7.64689692]
[1767871254810,7.44234727,134.37,134.33,0.6706331]
[1767871255621,21.43118592,134.38,134.33,7.64689692]
[1767871255821,48.84338253,134.42,134.36,0.6706331]
[1767871255822,7.38574956,134.42,134.36,0.6706331]
[1767871256127,7.67873979,134.42,134.37,6.97626382]
[1767871256320,0.70247597,134.42,134.37,6.97626382]
[1767871256526,7.67873979,134.42,134.37,6.97626382]
[1767871256723,7.43992262,134.41,134.37,6.97626382]
[1767871256924,8.14202592,134.42,134.38,6.97626382]
[1767871257112,7.43905712,134.43,134.39,7.64689692]
[1767871257312,4.963761,134.45,134.41,7.64689692]
[1767871257313,7.43805573,134.45,134.41,7.64689692]
[1767871257511,7.43805573,134.45,134.42,6.97626382]
[1767871257829,8.14299708,134.46,134.42,6.97626382]
[1767871258030,8.14299708,134.46,134.41,7.64689692]
[1767871258031,33.71215097,134.46,134.41,7.64689692]
[1767871258822,33.71215097,134.46,134.41,0.6706331]
[1767871259027,33.71215097,134.46,134.41,7.64689692]
[1767871259940,0.70247597,134.44,134.4,6.97626382]
[1767871260949,0.70247597,134.44,134.41,6.97626382]
[1767871260950,8.14115696,134.44,134.41,6.97626382]
[1767871261432,8.14115696,134.44,134.4,6.97626382]
[1767871262137,7.43868099,134.44,134.41,6.97626382]
[1767871263435,0.427747,134.43,134.37,8.16538313]
[1767871263617,0.427747,134.43,134.38,6.97626382]
[1767871263819,0.427747,134.43,134.38,7.66505052]
[1767871263820,7.68833396,134.43,134.38,7.66505052]
[1767871264019,0.71207014,134.43,134.39,6.97626382]
[1767871265034,7.43936914,134.42,134.39,6.97626382]
[1767871265442,7.43936914,134.42,134.38,7.66505052]
[1767871265743,7.43936914,134.42,134.39,6.97626382]
[1767871266432,7.43936914,134.42,134.38,7.66505052]
[1767871266749,7.43936914,134.42,134.39,6.97626382]
[1767871269132,7.43936914,134.42,134.38,7.66505052]
[1767871270725,8.10383155,134.42,134.38,7.66505052]
[1767871271348,7.43936914,134.42,134.38,7.66505052]
[1767871271522,7.43936914,134.42,134.38,0.6887867]
[1767871271729,7.43936914,134.42,134.39,0.6887867]
[1767871272223,7.43936914,134.42,134.38,6.97626382]
[1767871272547,14.41563296,134.42,134.38,0.6887867]
[1767871273050,15.13095918,134.42,134.38,0.6887867]